bitfinex/quotes_BTCUSD_20251212
["timestamp","ask_amount","ask_price","bid_price","bid_amount"]
[1765543776241,0.22757884,92276.0,92272.0,0.21874966]
[1765543776437,0.22757884,92276.0,92272.0,0.21774966]
[1765543776661,0.21674577,92274.0,92271.0,0.06935398]
[1765543776972,0.22758081,92275.0,92272.0,0.22958785]
[1765543777372,0.01083717,92275.0,92272.0,0.22758785]
[1765543777958,0.22757928,92276.0,92273.0,0.21674774]
[1765543778145,0.22757928,92276.0,92272.0,0.01083752]
[1765543778769,0.01083705,92276.0,92273.0,0.0108374]
[1765543780005,0.01083705,92276.0,92274.0,0.21674575]
[1765543780532,0.01083705,92276.0,92273.0,0.2285854]
[1765543780735,0.22758024,92276.0,92273.0,0.2285854]
[1765543781319,0.22758024,92276.0,92274.0,0.001]
[1765543781596,0.22757877,92276.0,92274.0,0.001]
[1765543781813,0.22757877,92276.0,92273.0,0.2275854]
[1765543782030,0.21674361,92275.0,92273.0,0.0108374]
[1765543782202,0.22757877,92276.0,92274.0,0.001]
[1765543783167,0.22757877,92276.0,92274.0,0.2177455]
[1765543783290,0.22757877,92276.0,92274.0,0.21774553]
[1765543784006,0.22757877,92276.0,92274.0,0.001]
[1765543784227,0.22757877,92276.0,92274.0,0.002]
[1765543784720,0.21674342,92275.0,92274.0,0.04099937]
[1765543785892,0.21674342,92275.0,92274.0,0.03999937]
[1765543786299,0.21674342,92275.0,92274.0,0.04099937]
[1765543786500,0.21674342,92275.0,92274.0,0.002]
[1765543786705,0.21674342,92275.0,92274.0,0.001]
[1765543787055,0.21674342,92275.0,92274.0,0.002]
[1765543787200,0.31272809,92275.0,92274.0,0.002]
[1765543787630,0.21674342,92275.0,92274.0,0.002]
[1765543788630,0.22757877,92276.0,92274.0,0.002]
[1765543789624,0.01083693,92277.0,92274.0,0.001]
[1765543789827,0.01083693,92277.0,92273.0,0.0108374]
[1765543790195,0.22757698,92277.0,92274.0,0.002]
[1765543790576,0.22757698,92277.0,92274.0,0.001]
[1765543790773,0.21674279,92276.0,92274.0,0.001]
[1765543791385,0.21673903,92277.0,92275.0,0.22757858]
[1765543791583,0.21673903,92277.0,92274.0,0.22758237]
[1765543791787,0.22757596,92277.0,92274.0,0.001]
[1765543792186,0.22757596,92277.0,92274.0,0.21774381]
[1765543792721,0.21674116,92276.0,92274.0,0.21874381]
[1765543793103,0.21674342,92275.0,92274.0,0.001]
[1765543793670,0.21674646,92274.0,92272.0,0.03899937]
[1765543793876,0.22758059,92275.0,92272.0,0.26658603]
[1765543794313,0.22758059,92275.0,92273.0,0.03899937]
[1765543794909,0.22758059,92275.0,92274.0,0.001]
[1765543795115,0.22758059,92275.0,92274.0,0.002]
[1765543795292,0.22758059,92275.0,92274.0,0.001]
[1765543795513,0.01083705,92276.0,92274.0,0.001]
[1765543795708,0.21674342,92275.0,92274.0,0.001]
[1765543796209,0.21674577,92274.0,92273.0,0.03899937]
[1765543796580,0.21674577,92274.0,92273.0,0.03999937]
[1765543797162,0.21674577,92274.0,92268.0,0.06935433]
[1765543797163,0.21675517,92270.0,92268.0,0.03899937]
[1765543797377,0.04450399,92268.0,92267.0,0.03899937]
[1765543797543,0.2628366,92268.0,92267.0,0.03899937]
[1765543797710,0.21676457,92266.0,92265.0,0.03899937]
[1765543797910,0.21833731,92266.0,92265.0,0.03899937]
[1765543799041,0.2628413,92266.0,92265.0,0.03899937]
[1765543799277,0.2628413,92266.0,92259.0,0.05851634]
[1765543799278,0.21676692,92265.0,92264.0,0.03899937]
[1765543800551,0.21676692,92265.0,92264.0,0.03999937]
[1765543801563,0.21676692,92265.0,92264.0,0.001]
[1765543801738,0.21676692,92265.0,92264.0,0.002]
[1765543806789,0.06157274,92266.0,92264.0,0.002]
[1765543806997,0.27833733,92266.0,92264.0,0.002]
[1765543807309,0.21676692,92265.0,92264.0,0.002]
[1765543807479,0.21676692,92265.0,92264.0,0.001]
[1765543807681,0.21676692,92265.0,92263.0,0.03899937]
[1765543807883,0.21676927,92264.0,92263.0,0.03899937]
[1765543808978,0.28917576,92266.0,92263.0,0.03899937]
[1765543809273,0.07241096,92266.0,92263.0,0.03899937]
[1765543809476,0.21676894,92265.0,92263.0,0.03899937]
[1765543809651,0.21676894,92265.0,92263.0,0.03999937]
[1765543809853,0.28917581,92266.0,92263.0,0.25777051]
[1765543810060,0.28760307,92266.0,92263.0,0.04099937]
[1765543810415,0.06,92266.0,92265.0,0.25576629]
[1765543810542,0.01083752,92272.0,92269.0,0.21675647]
[1765543810744,0.01083705,92276.0,92272.0,0.21675036]
[1765543810961,0.01083646,92281.0,92275.0,0.01083717]
[1765543811167,0.01083634,92282.0,92278.0,0.21673637]
[1765543811356,0.06338567,92283.0,92279.0,0.21673403]
[1765543811564,0.22756438,92282.0,92278.0,0.21673637]
[1765543811759,0.01083634,92282.0,92278.0,0.21673637]
[1765543812164,0.22756358,92282.0,92278.0,0.21673637]
[1765543812395,0.22756358,92282.0,92277.0,0.2275755]
[1765543812560,0.01522428,92280.0,92276.0,0.22757578]
[1765543812778,0.2319577,92280.0,92277.0,0.21673844]
[1765543812971,0.2319577,92280.0,92277.0,0.21673841]
[1765543813176,0.0043877,92280.0,92277.0,0.22757534]
[1765543813386,0.0093877,92280.0,92278.0,0.21673561]
[1765543813640,0.0093877,92280.0,92277.0,0.22757534]
[1765543813847,0.0093877,92280.0,92278.0,0.21673618]
[1765543814167,0.0043877,92280.0,92278.0,0.21673618]
[1765543814318,0.0093877,92280.0,92278.0,0.21673618]
[1765543814578,0.0053877,92280.0,92278.0,0.21673618]
[1765543814729,0.21673433,92279.0,92276.0,0.01083705]
[1765543814912,0.21673433,92279.0,92276.0,0.22757712]
[1765543815111,0.01522428,92280.0,92277.0,0.22757555]
[1765543815364,0.01122428,92280.0,92278.0,0.21673551]
[1765543815601,0.0003877,92280.0,92278.0,0.21673551]
[1765543815714,0.0003877,92280.0,92278.0,0.21773551]
[1765543816073,0.0003877,92280.0,92278.0,0.21673551]
[1765543816945,0.0003877,92280.0,92279.0,0.21673403]
[1765543818551,0.0003877,92280.0,92279.0,0.21773403]
[1765543819170,0.0003877,92280.0,92279.0,0.21673403]
[1765543819554,0.0003877,92280.0,92279.0,0.21773403]
[1765543820799,0.0003877,92280.0,92279.0,0.21873403]
[1765543820997,0.0003877,92280.0,92279.0,0.21773403]
[1765543821378,0.0003877,92280.0,92279.0,0.21973403]
[1765543821765,0.0003877,92280.0,92279.0,0.24329403]
[1765543822374,0.0003877,92280.0,92279.0,0.21973403]
[1765543822571,0.0003877,92280.0,92279.0,0.24329403]
[1765543822770,0.0003877,92280.0,92279.0,0.21973403]
[1765543823265,0.0003877,92280.0,92279.0,0.53399403]
[1765543827757,0.0003877,92280.0,92279.0,0.59251037]
[1765543828053,0.0003877,92280.0,92279.0,0.57712201]
[1765543831059,0.0003877,92280.0,92279.0,0.58800201]
[1765543831879,5.974e-05,92280.0,92279.0,0.58800201]
[1765543832417,5.974e-05,92280.0,92279.0,1.6360204]
[1765543832580,0.00105974,92280.0,92279.0,1.77459719]
[1765543832777,7.63e-05,92280.0,92279.0,1.6400204]
[1765543832943,0.0004,92290.0,92289.0,0.55053853]
[1765543833144,0.0004,92290.0,92289.0,0.5677754]
[1765543833340,0.0004,92290.0,92289.0,0.61838304]
[1765543833551,0.0004,92290.0,92289.0,0.62378304]
[1765543834198,0.0004,92290.0,92289.0,0.70143991]
[1765543834569,0.0004,92290.0,92289.0,0.62378304]
[1765543835366,0.0004,92290.0,92289.0,1.67380143]
[1765543835570,0.0014,92290.0,92289.0,1.67980143]
[1765543835766,0.0014,92290.0,92289.0,1.67880143]
[1765543836171,0.0024,92290.0,92289.0,1.68480143]
[1765543836846,0.0014,92290.0,92289.0,1.67980143]
[1765543837262,0.0024,92290.0,92289.0,1.68480143]
[1765543837573,1e-08,92290.0,92289.0,1.64167345]
[1765543837755,1e-08,92290.0,92289.0,1.68480143]
[1765543838221,1e-08,92290.0,92289.0,1.78197662]
[1765543838421,0.0054,92310.0,92307.0,0.01083341]
[1765543838621,1e-08,92310.0,92309.0,1.6275576]
[1765543839027,1e-08,92310.0,92309.0,1.6511176]
[1765543839230,4.15527607,92312.0,92311.0,1.56216688]
[1765543839458,4.07141126,92312.0,92311.0,1.61218527]
[1765543839672,3.83697075,92312.0,92311.0,1.63574527]
[1765543839879,3.62173046,92312.0,92311.0,1.63574527]
[1765543840043,3.36019915,92312.0,92311.0,1.63574527]
[1765543840245,3.3493687,92312.0,92311.0,1.63574527]
[1765543840671,2.76721635,92312.0,92311.0,1.63574527]
[1765543841000,2.62476935,92312.0,92311.0,1.63574527]
[1765543841144,2.31044986,92312.0,92311.0,1.63574527]
[1765543841345,2.03016357,92312.0,92311.0,1.64374527]
[1765543841752,2.01833312,92312.0,92311.0,1.63574527]
[1765543842136,2.01933312,92312.0,92311.0,1.64374527]
[1765543842306,2.00950267,92312.0,92311.0,1.65074527]
[1765543842761,1.9976731,92312.0,92311.0,1.64374527]
[1765543843112,1.98784353,92312.0,92311.0,1.70964113]
[1765543843541,1.97701396,92312.0,92311.0,1.70964113]
[1765543843744,1.96618439,92312.0,92311.0,1.70964113]
[1765543844265,1.96618439,92312.0,92311.0,1.65174527]
[1765543844616,1.96618439,92312.0,92311.0,1.70964113]
[1765543845151,1.96618439,92312.0,92311.0,1.65174527]
[1765543846040,1.96220503,92312.0,92311.0,1.65174527]
[1765543846897,1.46451365,92312.0,92311.0,1.65174527]
[1765543847696,0.90488627,92312.0,92311.0,1.65174527]
[1765543848067,1e-08,92312.0,92311.0,1.65174527]
[1765543848239,0.0004,92340.0,92319.0,1.60048649]
[1765543848446,0.0004,92340.0,92319.0,1.68914649]
[1765543848641,0.0004,92340.0,92329.0,1.60046303]
[1765543848804,0.0004,92340.0,92329.0,1.81120067]
[1765543849163,0.0004,92340.0,92329.0,1.88278067]
[1765543849501,0.0004,92340.0,92329.0,1.88711484]
[1765543850102,0.0004,92340.0,92339.0,1.63367957]
[1765543850322,0.0004,92350.0,92339.0,1.63367957]
[1765543850323,0.0004,92350.0,92349.0,1.60041612]
[1765543850550,0.0004,92350.0,92349.0,1.62917612]
[1765543850891,0.00097693,92350.0,92349.0,1.70508941]
[1765543851241,0.0004,92360.0,92359.0,0.55037428]
[1765543851439,0.0004,92360.0,92359.0,1.63758267]
[1765543851643,0.0004,92360.0,92359.0,1.70916267]
[1765543852009,0.0006884,92360.0,92359.0,1.70916267]
[1765543852417,0.0006884,92360.0,92359.0,1.71316267]
[1765543852635,0.0006884,92360.0,92359.0,1.70916267]
[1765543853032,0.0006884,92360.0,92359.0,1.82826267]
[1765543853250,0.0006884,92360.0,92359.0,1.71416267]
[1765543853585,0.0006884,92360.0,92359.0,1.70916267]
[1765543853786,0.0006884,92360.0,92359.0,0.70916267]
[1765543854023,0.0006884,92360.0,92359.0,1.70916267]
[1765543854188,0.0006884,92360.0,92359.0,1.71316267]
[1765543854392,0.0006884,92360.0,92359.0,1.70916267]
[1765543854809,0.0006884,92360.0,92359.0,1.71316267]
[1765543855010,0.0006884,92360.0,92359.0,1.73428267]
[1765543855751,0.0006884,92360.0,92359.0,1.76135081]
[1765543858347,0.0006884,92360.0,92359.0,1.79384804]
[1765543859358,0.0006884,92360.0,92359.0,1.84132804]
[1765543860763,0.0006884,92360.0,92359.0,1.98782804]
[1765543861329,0.0006884,92360.0,92359.0,2.0457239]
[1765543861755,0.0006884,92360.0,92359.0,1.87749796]
[1765543862374,0.0006884,92360.0,92359.0,1.84132804]
[1765543863277,0.0006884,92360.0,92359.0,1.95542804]
[1765543864059,0.0004,92380.0,92369.0,1.60036922]
[1765543864255,0.0004,92380.0,92369.0,1.68351922]
[1765543864515,0.0004,92380.0,92369.0,1.75509922]
[1765543864689,0.03661,92378.0,92369.0,1.51535922]
[1765543864989,0.07195,92376.0,92369.0,0.64994127]
[1765543865195,0.07195,92376.0,92369.0,1.33182553]
[1765543865399,0.03563,92371.0,92369.0,1.33182553]
[1765543865554,0.03563,92371.0,92369.0,1.33282553]
[1765543865758,0.03563,92371.0,92369.0,1.34870906]
[1765543865961,0.03661,92378.0,92369.0,1.35170906]
[1765543866171,0.03661,92378.0,92369.0,1.6698248]
[1765543866572,0.03661,92378.0,92369.0,1.6527448]
[1765543866874,0.07195,92377.0,92369.0,0.8981248]
[1765543867072,0.07195,92377.0,92369.0,1.6698248]
[1765543867395,0.03661,92378.0,92369.0,1.7888848]
[1765543867587,0.03661,92378.0,92369.0,1.7173048]
[1765543868435,0.07195,92377.0,92369.0,0.9494248]
[1765543869052,0.07195,92377.0,92369.0,0.6698248]
[1765543869289,0.07195,92377.0,92369.0,1.6698248]
[1765543869618,0.00068835,92370.0,92369.0,1.6698248]
[1765543870151,0.00068835,92370.0,92369.0,0.6698248]
[1765543870331,0.00068835,92370.0,92369.0,1.6698248]
[1765543870534,0.11768835,92370.0,92369.0,0.6698248]
[1765543873141,0.11768835,92370.0,92369.0,0.60272641]
[1765543873359,0.11768835,92370.0,92369.0,0.6698248]
[1765543874236,0.11768835,92370.0,92369.0,0.5437149]
[1765543874452,0.11768835,92370.0,92369.0,0.52830285]
[1765543874690,0.11768835,92370.0,92369.0,0.02108]
[1765543874936,0.3357816,92370.0,92369.0,0.004]
[1765543875276,0.3357816,92370.0,92369.0,0.003]
[1765543875477,0.3357816,92370.0,92361.0,0.03876956]
[1765543875478,0.01082637,92367.0,92361.0,0.03876956]
[1765543875677,0.01239911,92367.0,92361.0,0.03876956]
[1765543875914,0.04899,92362.0,92361.0,0.03876956]
[1765543876295,0.1206,92362.0,92361.0,0.03878815]
[1765543876844,0.1206,92362.0,92361.0,0.03978815]
[1765543877152,0.1206,92362.0,92361.0,0.001]
[1765543877153,0.12217274,92362.0,92361.0,0.001]
[1765543878721,0.12217274,92362.0,92350.0,0.30152837]
[1765543878722,0.22737978,92357.0,92350.0,0.30152837]
[1765543878901,0.03596,92352.0,92350.0,0.51809555]
[1765543879082,0.0483,92351.0,92350.0,0.51809555]
[1765543879288,0.12031,92351.0,92350.0,0.34031652]
[1765543879487,0.12031,92351.0,92350.0,0.2907]
[1765543880458,0.12031,92351.0,92350.0,0.5072674]
[1765543882275,0.12031,92351.0,92350.0,0.2907]
[1765543882635,0.12031,92351.0,92350.0,0.5072674]
[1765543882832,0.12031,92351.0,92350.0,0.2907]
[1765543883079,0.12031,92351.0,92350.0,0.5072674]
[1765543883254,0.12031,92351.0,92350.0,0.2907]
[1765543883453,0.12031,92351.0,92350.0,0.5072674]
[1765543884091,0.12031,92351.0,92350.0,0.2907]
[1765543884247,0.12031,92351.0,92347.0,0.01082872]
[1765543884468,0.0483,92348.0,92347.0,0.04414814]
[1765543884981,0.12031,92348.0,92347.0,0.55142258]
[1765543888732,0.12031,92348.0,92347.0,0.59455056]
[1765543888934,0.12031,92348.0,92347.0,0.55142258]
[1765543889232,0.01082672,92364.0,92357.0,0.30152754]
[1765543889414,0.01082696,92362.0,92357.0,0.2907]
[1765543889615,0.01082708,92361.0,92357.0,0.2907]
[1765543889809,0.22736572,92363.0,92357.0,0.2907]
[1765543890012,0.01082684,92363.0,92357.0,0.30152754]
[1765543890216,0.21654667,92359.0,92356.0,0.2907]
[1765543890386,0.21655099,92357.0,92356.0,0.2907]
[1765543891407,0.01082766,92356.0,92352.0,0.01712]
[1765543891741,0.01878697,92356.0,92352.0,0.01712]
[1765543892044,0.01082778,92355.0,92352.0,0.01712]
[1765543892248,0.01082778,92355.0,92350.0,0.2907]
[1765543892249,0.21656506,92351.0,92350.0,0.2907]
[1765543892466,0.01082954,92340.0,92338.0,0.01712]
[1765543892648,0.01082977,92338.0,92334.0,0.2907]
[1765543892824,0.22743236,92337.0,92334.0,0.01712]
[1765543893028,0.01082989,92337.0,92329.0,0.01083083]
[1765543893232,0.01082977,92338.0,92332.0,0.01712]
[1765543893432,0.01082977,92338.0,92333.0,0.30153036]
[1765543893819,0.01082989,92337.0,92333.0,0.2907]
[1765543894418,0.01082977,92338.0,92333.0,0.30153036]
[1765543894641,0.01082989,92337.0,92333.0,0.2907]
[1765543894843,0.22742615,92338.0,92332.0,0.02795048]
[1765543895053,0.01082966,92339.0,92333.0,0.2907]
[1765543895295,0.01082977,92338.0,92333.0,0.51813763]
[1765543895642,0.22742168,92340.0,92334.0,0.01083024]
[1765543895869,0.21659566,92338.0,92333.0,0.2917]
[1765543896074,0.21659566,92338.0,92332.0,0.31865048]
[1765543896297,0.22742287,92339.0,92333.0,0.01083036]
[1765543896499,0.22742287,92339.0,92333.0,0.01183036]
[1765543896656,0.22742287,92339.0,92333.0,0.22843684]
[1765543896856,0.22742573,92338.0,92332.0,0.30782]
[1765543897079,0.01082989,92337.0,92332.0,0.31865048]
[1765543897428,0.01082966,92339.0,92335.0,0.2907]
[1765543897643,0.01082942,92341.0,92336.0,0.01083001]
[1765543897814,0.21658655,92342.0,92338.0,0.2907]
[1765543898087,0.22741766,92343.0,92338.0,0.2907]
[1765543898452,0.01082942,92341.0,92338.0,0.2907]
[1765543898672,0.22741766,92343.0,92337.0,0.01082989]
[1765543898897,0.22741568,92342.0,92337.0,0.30152989]
[1765543899283,0.01082942,92341.0,92337.0,0.2907]
[1765543899524,0.22741799,92341.0,92337.0,0.2907]
[1765543899927,0.22741799,92341.0,92336.0,0.32859815]
[1765543900173,0.01082954,92340.0,92336.0,0.32859815]
[1765543900379,0.01082954,92340.0,92336.0,0.2907]
[1765543901294,0.01082954,92340.0,92335.0,0.30153012]
[1765543901497,0.01082954,92340.0,92335.0,0.2907]
[1765543901703,0.22741855,92341.0,92337.0,0.001]
[1765543901931,0.01082942,92341.0,92337.0,0.001]
[1765543902150,0.01082954,92340.0,92337.0,0.001]
[1765543902351,0.01082919,92343.0,92338.0,0.01082977]
[1765543902505,0.02961627,92342.0,92336.0,0.01083001]
[1765543902718,0.24620253,92342.0,92337.0,0.30152989]
[1765543902923,0.21659555,92338.0,92337.0,0.2907]
[1765543903126,0.21660728,92333.0,92332.0,0.01712]
[1765543903768,0.21660546,92334.0,92332.0,0.01712]
[1765543904132,0.01082989,92337.0,92332.0,0.31865048]
[1765543904395,0.01082977,92338.0,92332.0,0.53525922]
[1765543904558,0.22742556,92338.0,92332.0,0.53525922]
[1765543904733,0.01082977,92338.0,92332.0,0.53525922]
[1765543904932,0.01082989,92337.0,92332.0,0.53525922]
[1765543905538,0.01082989,92337.0,92333.0,0.01083036]
[1765543905759,0.01083012,92335.0,92332.0,0.01812]
[1765543905990,0.2274336,92335.0,92332.0,0.01712]
[1765543906389,0.2274336,92335.0,92332.0,0.01812]
[1765543906569,0.21660573,92334.0,92332.0,0.01812]
[1765543906794,0.01083012,92335.0,92332.0,0.01712]
[1765543906995,0.21660728,92333.0,92332.0,0.01712]
[1765543907194,0.22743495,92335.0,92332.0,0.01812]
[1765543907437,0.24622192,92335.0,92332.0,0.01812]
[1765543907658,0.02961709,92335.0,92332.0,0.01812]
[1765543907863,0.24621968,92335.0,92332.0,0.01812]
[1765543908186,0.21660503,92334.0,92332.0,0.01812]
[1765543908591,0.22743728,92335.0,92332.0,0.01712]
[1765543908964,0.24622425,92335.0,92332.0,0.01712]
[1765543909447,0.001,92334.0,92332.0,0.01712]
[1765543909663,0.22743276,92335.0,92332.0,0.01712]
[1765543909869,0.001,92335.0,92332.0,0.01712]
[1765543910185,0.01183012,92335.0,92332.0,0.01712]
[1765543911674,0.001,92335.0,92332.0,0.01712]
[1765543911871,0.001,92335.0,92333.0,0.2907]
[1765543912380,0.001,92335.0,92333.0,0.50730683]
[1765543912554,0.001,92335.0,92334.0,0.50730493]
[1765543912891,0.01082919,92343.0,92338.0,0.22742467]
[1765543912892,0.0108293,92342.0,92338.0,0.22742467]
[1765543913243,0.0108293,92342.0,92337.0,0.03789803]
[1765543913684,0.43301698,92377.0,92342.0,0.0108293]
[1765543913885,0.01082837,92350.0,92345.0,0.22740598]
[1765543914089,0.22739527,92351.0,92346.0,0.01082883]
[1765543914335,0.22739086,92352.0,92347.0,0.01082872]
[1765543914336,0.22739183,92352.0,92347.0,0.01082872]
[1765543914515,0.01082837,92350.0,92345.0,0.01082895]
[1765543914726,0.01082837,92350.0,92346.0,0.01082883]
[1765543915127,0.22739712,92350.0,92346.0,0.01082883]
[1765543915312,0.22739868,92349.0,92345.0,0.01082895]
[1765543915530,0.2273991,92349.0,92345.0,0.01082895]
[1765543915742,0.01182837,92350.0,92345.0,0.01082895]
[1765543916028,0.01082848,92349.0,92346.0,0.2907]
[1765543916463,0.01182848,92349.0,92346.0,0.2907]
[1765543916745,0.22739855,92349.0,92346.0,0.2907]
[1765543916955,0.21657405,92348.0,92346.0,0.2907]
[1765543917126,0.01082872,92347.0,92345.0,0.03878815]
[1765543917292,0.21657247,92348.0,92345.0,0.03878815]
[1765543917495,0.22840251,92349.0,92345.0,0.03878815]
[1765543917795,0.22840251,92349.0,92345.0,0.0496171]
[1765543918622,0.22940251,92349.0,92345.0,0.0496171]
[1765543919055,0.22840251,92349.0,92345.0,0.0496171]
[1765543919419,0.001,92348.0,92346.0,0.03878815]
[1765543919950,0.21657321,92348.0,92346.0,0.03878815]
[1765543920391,0.21657321,92348.0,92347.0,0.03878815]
[1765543920798,0.001,92349.0,92347.0,0.03878815]
[1765543921360,0.001,92349.0,92348.0,0.03878815]
[1765543921581,0.22739771,92350.0,92348.0,0.03878815]
[1765543921785,0.21655763,92355.0,92350.0,0.01082837]
[1765543921991,0.01082754,92357.0,92350.0,0.01082837]
[1765543921992,0.01082754,92357.0,92352.0,0.03887879]
[1765543922165,0.21655289,92358.0,92352.0,0.26626785]
[1765543922361,0.21655289,92358.0,92354.0,0.21655802]
[1765543922362,0.00011635,92358.0,92354.0,0.21655802]
[1765543922636,0.01094378,92358.0,92355.0,0.01082778]
[1765543922849,0.00011635,92358.0,92357.0,0.50725099]
[1765543923137,0.00011635,92358.0,92357.0,0.54612978]
[1765543923351,0.00011635,92358.0,92357.0,0.52437099]
[1765543923677,0.00011635,92358.0,92357.0,0.58251701]
[1765543924316,0.00011635,92358.0,92357.0,0.52437099]
[1765543924942,0.00111635,92358.0,92357.0,0.52437099]
[1765543925136,0.00011635,92358.0,92357.0,0.58251701]
[1765543925385,0.00111635,92358.0,92357.0,0.52437099]
[1765543925587,0.00111635,92358.0,92357.0,0.56749897]
[1765543926020,0.00111635,92358.0,92357.0,0.52437099]
[1765543930126,0.00111635,92358.0,92357.0,0.64919499]
[1765543930346,0.00111635,92358.0,92357.0,0.59104897]
[1765543931185,0.00111635,92358.0,92357.0,0.54792099]
[1765543931382,0.00111635,92358.0,92357.0,0.55225505]
[1765543931803,0.00111635,92358.0,92357.0,0.61040107]
[1765543932000,0.00111635,92358.0,92357.0,0.58685107]
[1765543932422,0.00111635,92358.0,92357.0,0.52870505]
[1765543935015,0.00111635,92358.0,92357.0,0.51158505]
[1765543935231,0.00111635,92358.0,92357.0,0.52870505]
[1765543935792,0.00111635,92358.0,92357.0,0.57183303]
[1765543936197,0.00111635,92358.0,92357.0,0.59538303]
[1765543937664,0.00111635,92358.0,92357.0,0.52870505]
[1765543938413,0.00111635,92358.0,92357.0,0.58685107]
[1765543940370,0.00111635,92358.0,92357.0,0.57183303]
[1765543940988,0.00111635,92358.0,92357.0,0.59480303]
[1765543941629,0.00111635,92358.0,92357.0,0.55167505]
[1765543941829,0.00111635,92358.0,92357.0,0.57183303]
[1765543943559,0.00111635,92358.0,92357.0,0.52870505]
[1765543951451,0.00111635,92358.0,92357.0,0.57183303]
[1765543952187,0.02367635,92358.0,92357.0,0.57183303]
[1765543952367,0.00111635,92358.0,92357.0,0.64900948]
[1765543953987,0.02367635,92358.0,92357.0,0.6058815]
[1765543954150,0.02367635,92358.0,92357.0,0.52866505]
[1765543954659,0.00111635,92358.0,92357.0,0.55292505]
[1765543954862,0.01088,92367.0,92366.0,0.50722989]
[1765543955267,0.03344,92367.0,92366.0,0.53429803]
[1765543956531,0.00023068,92368.0,92366.0,0.53429803]
[1765543956675,0.00023068,92368.0,92367.0,0.52888029]
[1765543956896,0.00023068,92368.0,92367.0,0.50722754]
[1765543957916,0.00123068,92368.0,92367.0,0.50722754]
[1765543958312,0.02279068,92368.0,92367.0,0.50722754]
[1765543959803,0.02479068,92368.0,92367.0,0.50722754]
[1765543961121,0.00223068,92368.0,92367.0,0.50722754]
[1765543961402,0.01812068,92368.0,92367.0,0.50722754]
[1765543961617,0.04068068,92368.0,92367.0,0.50722754]
[1765543962399,0.00223068,92368.0,92367.0,0.54001754]
[1765543962613,0.00223068,92368.0,92367.0,0.56427754]
[1765543962759,0.00223068,92368.0,92367.0,0.54001754]
[1765543963510,0.00023068,92368.0,92367.0,0.54001754]
[1765543963943,0.00023068,92368.0,92367.0,0.54101754]
[1765543964829,0.00023068,92368.0,92367.0,0.52530754]
[1765543968023,0.03868068,92368.0,92367.0,0.52530754]
[1765543968456,0.00023068,92368.0,92367.0,0.52530754]
[1765543969078,3.582e-05,92368.0,92367.0,0.60840552]
[1765543969324,3.582e-05,92368.0,92367.0,0.61928552]
[1765543970171,3.582e-05,92368.0,92367.0,0.57615754]
[1765543971828,3.582e-05,92368.0,92367.0,0.66930391]
[1765543974229,3.582e-05,92368.0,92367.0,0.60909593]
[1765543974431,3.582e-05,92368.0,92367.0,0.58483593]
[1765543974672,3.582e-05,92368.0,92367.0,0.51910754]
[1765543974910,3.582e-05,92368.0,92367.0,0.56325568]
[1765543976458,3.582e-05,92368.0,92367.0,0.54617568]
[1765543976683,3.582e-05,92368.0,92367.0,0.56325568]
[1765543978711,3.582e-05,92368.0,92367.0,0.60638366]
[1765543979156,0.0004,92380.0,92369.0,0.55035083]
[1765543980414,0.0004,92380.0,92369.0,0.60136922]
[1765543981367,0.0004,92380.0,92369.0,0.60036922]
[1765543981519,0.0004,92380.0,92369.0,0.57432124]
[1765543981918,0.0004,92380.0,92369.0,0.61744922]
[1765543982335,0.0004,92380.0,92369.0,0.61944922]
[1765543982534,0.0004,92380.0,92369.0,0.62044922]
[1765543982741,0.0004,92380.0,92369.0,0.61944922]
[1765543982988,0.0004,92380.0,92369.0,0.61744922]
[1765543983206,0.0004,92380.0,92369.0,0.61844922]
[1765543983407,0.0004,92380.0,92369.0,0.62044922]
[1765543984733,0.00023066,92376.0,92369.0,0.62044922]
[1765543985169,0.00023066,92376.0,92369.0,0.60336922]
[1765543985570,0.00023066,92376.0,92369.0,0.52730285]
[1765543986459,0.00023066,92376.0,92369.0,0.52530285]
[1765543986658,0.00023066,92376.0,92369.0,0.52430285]
[1765543986881,0.00023066,92376.0,92369.0,0.52530285]
[1765543990854,0.00023066,92376.0,92369.0,0.52963654]
[1765543992159,0.00023066,92376.0,92369.0,0.6072288]
[1765543992372,0.00023066,92376.0,92369.0,0.52963654]
[1765543996500,0.00023066,92376.0,92369.0,0.57276452]
[1765544004925,0.00023066,92376.0,92369.0,0.60738606]
[1765544005153,0.00023066,92376.0,92369.0,0.52963654]
[1765544005748,0.01082543,92375.0,92369.0,0.52963654]
[1765544006079,0.01082555,92374.0,92369.0,0.60738397]
[1765544006253,0.01082543,92375.0,92369.0,0.60738397]
[1765544006457,0.00023066,92376.0,92369.0,0.60738397]
[1765544007373,0.00023066,92376.0,92369.0,0.52963654]
[1765544009473,0.01105598,92376.0,92369.0,0.52963654]
[1765544009637,0.00023066,92376.0,92369.0,0.52963654]
[1765544011362,0.01105598,92376.0,92369.0,0.52963654]
[1765544011571,0.01082543,92375.0,92369.0,0.52963654]
[1765544011739,0.22733475,92375.0,92369.0,0.52963654]
[1765544011943,0.01082555,92374.0,92369.0,0.52963654]
[1765544012274,0.22733475,92375.0,92369.0,0.52963654]
[1765544012721,0.01082543,92375.0,92369.0,0.52963654]
[1765544013214,0.22733833,92374.0,92369.0,0.52963654]
[1765544013357,0.01082579,92372.0,92369.0,0.60738397]
[1765544013570,0.22756284,92376.0,92369.0,0.60738397]
[1765544013774,0.01082567,92373.0,92369.0,0.60738397]
[1765544014363,0.22733838,92374.0,92369.0,0.60738397]
[1765544014562,0.01082555,92374.0,92369.0,0.60738397]
[1765544015167,0.01082543,92375.0,92369.0,0.60738397]
[1765544015366,0.01082555,92374.0,92369.0,0.60738397]
[1765544016029,0.22733424,92375.0,92369.0,0.60738397]
[1765544016240,0.01082543,92375.0,92369.0,0.60638397]
[1765544016651,0.01082543,92375.0,92369.0,0.60738397]
[1765544017038,0.01082543,92375.0,92369.0,0.60638397]
[1765544017354,0.22733493,92375.0,92369.0,0.60738397]
[1765544017518,0.01082543,92375.0,92369.0,0.60738397]
[1765544017706,0.22756442,92376.0,92369.0,0.60738397]
[1765544018656,0.01082555,92374.0,92369.0,0.60738397]
[1765544018960,0.22733514,92375.0,92369.0,0.60738397]
[1765544019169,0.22733676,92374.0,92369.0,0.60738397]
[1765544019523,0.01082555,92374.0,92369.0,0.60738397]
[1765544020149,0.22733514,92375.0,92369.0,0.60738397]
[1765544020356,0.01082543,92375.0,92369.0,0.60738397]
[1765544020564,0.01082555,92374.0,92369.0,0.60738397]
[1765544021175,0.01082543,92375.0,92369.0,0.60738397]
[1765544021373,0.01082555,92374.0,92369.0,0.60738397]
[1765544021990,0.2273346,92375.0,92369.0,0.60738397]
[1765544022200,0.22733591,92375.0,92369.0,0.60738397]
[1765544022687,0.01082543,92375.0,92369.0,0.60738397]
[1765544023034,0.22733593,92375.0,92369.0,0.60738397]